Workbook

Sheet Formulaire
D2: Bon de commande • Cadeaux d’Entreprise
D4: CE / Entreprise: | H4: Téléphone: | P4: Aide pour utiliser le formulaire: 1. Si un bandeau jaune apparaît, cliquer sur le bouton "activer le contenu" 2. Renseigner chaque champ de coordonnées en orange 3. Sélectionner les quantités de chaque article souhaitées en orange 4. Cliquer sur le bouton en bas de page "Envoyer le bon de commande" Un message vous indique alors que la commande vient de nous être envoyée, vous pouvez donc fermer le document
D5: Adresse:
D6: Code postal: | H6: Ville:
A7: lieu-dit «Braunès» 47320 Lafitte-sur-Lot 05 53 84 04 17 • mdpruneau.vpc@orange.fr www.maisondupruneau.com | D7: Nom: | H7: Prénom:
D8: ligne directe: | H8: Mail:
B10: ="Votre remise commerciale est de "&M55*100&"% sur les prix publics" -> Votre remise commerciale est de 10% sur les prix publics
B11: # | C11: Désignation | G11: Prix public HT | H11: Prix public TTC | I11: TVA (tx) | J11: Votre Prix CE & Pros HT | K11: Votre Prix CE & Pros TTC | L11: Qté | M11: Montant total HT remisé
B12: =VLOOKUP(C12,Produits!A$1:F$114,2,FALSE) -> 1 | C12: Boite or 100 ans fourrés 350G | G12: =VLOOKUP(C12,Produits!A$1:F$114,4,FALSE) -> 12.41 | H12: =VLOOKUP(C12,Produits!A$1:F$114,6,FALSE) -> 14.9 | I12: =VLOOKUP(C12,Produits!A$1:F$114,5,FALSE) -> 0.2 | J12: =IFERROR(ROUNDDOWN(K12/(1+I12),2),"") -> 11.17 | K12: =IF(ROUNDUP(H12-H12*$M$55,2)=0,"",ROUNDUP(H12-H12*$M$55,2)) -> 13.41 | L12: 0 | M12: =J12*L12 -> 0 | N12: =IFERROR(G12*L12,"") -> 0 | O12: =IFERROR((K12-J12)*L12,"") -> 0
B13: =VLOOKUP(C13,Produits!A$1:F$114,2,FALSE) -> 2 | C13: Boite or 100 ans fourrés 600G | G13: =VLOOKUP(C13,Produits!A$1:F$114,4,FALSE) -> 18.33 | H13: =VLOOKUP(C13,Produits!A$1:F$114,6,FALSE) -> 22 | I13: =VLOOKUP(C13,Produits!A$1:F$114,5,FALSE) -> 0.2 | J13: 16.5 | K13: =IF(H13-H13*$M$55=0,"",H13-H13*$M$55) -> 19.8 | L13: 0 | M13: =G13*L13 -> 0 | N13: 0 | O13: =IFERROR((K13-J13)*L13,"") -> 0
B14: =VLOOKUP(C14,Produits!A$1:F$114,2,FALSE) -> 3 | C14: Boite or 100 ans mixte 290G | G14: =VLOOKUP(C14,Produits!A$1:F$114,4,FALSE) -> 12.25 | H14: =VLOOKUP(C14,Produits!A$1:F$114,6,FALSE) -> 14.7 | I14: =VLOOKUP(C14,Produits!A$1:F$114,5,FALSE) -> 0.2 | J14: 11.02 | K14: 13.23 | L14: 0 | M14: 0 | N14: 0 | O14: 0
B15: =VLOOKUP(C15,Produits!A$1:F$114,2,FALSE) -> 4 | C15: Boite or 100 ans mixte 500G | G15: =VLOOKUP(C15,Produits!A$1:F$114,4,FALSE) -> 17.75 | H15: =VLOOKUP(C15,Produits!A$1:F$114,6,FALSE) -> 21.3 | I15: =VLOOKUP(C15,Produits!A$1:F$114,5,FALSE) -> 0.2 | J15: 15.97 | K15: 19.17 | L15: 0 | M15: 0 | N15: 0 | O15: 0
B16: =VLOOKUP(C16,Produits!A$1:F$114,2,FALSE) -> 5 | C16: Boite or 100 ans fourrés 850G | G16: =VLOOKUP(C16,Produits!A$1:F$114,4,FALSE) -> 23.66 | H16: =VLOOKUP(C16,Produits!A$1:F$114,6,FALSE) -> 28.4 | I16: =VLOOKUP(C16,Produits!A$1:F$114,5,FALSE) -> 0.2 | J16: 21.3 | K16: 25.56 | L16: 0 | M16: 0 | N16: 0 | O16: 0
B17: =VLOOKUP(C17,Produits!A$1:F$114,2,FALSE) -> 6 | C17: Boite pruneaux d'Agen 1kg 33/44 | G17: =VLOOKUP(C17,Produits!A$1:F$114,4,FALSE) -> 9.95 | H17: =VLOOKUP(C17,Produits!A$1:F$114,6,FALSE) -> 10.5 | I17: =VLOOKUP(C17,Produits!A$1:F$114,5,FALSE) -> 0.055 | J17: 8.95 | K17: 9.45 | L17: 0 | M17: 0 | N17: 0 | O17: 0
B18: =VLOOKUP(C18,Produits!A$1:F$114,2,FALSE) -> 7 | C18: Claie agenaise 350g de pruneaux d'Agen fourrés à la crème de pruneaux | G18: =VLOOKUP(C18,Produits!A$1:F$114,4,FALSE) -> 12.83 | H18: =VLOOKUP(C18,Produits!A$1:F$114,6,FALSE) -> 15.4 | I18: =VLOOKUP(C18,Produits!A$1:F$114,5,FALSE) -> 0.2 | J18: 11.55 | K18: 13.86 | L18: 0 | M18: 0 | N18: 0 | O18: 0
B19: =VLOOKUP(C19,Produits!A$1:F$114,2,FALSE) -> 8 | C19: Claie agenaise 600g de pruneaux d'Agen fourrés à la crème de pruneaux | G19: =VLOOKUP(C19,Produits!A$1:F$114,4,FALSE) -> 19.58 | H19: =VLOOKUP(C19,Produits!A$1:F$114,6,FALSE) -> 23.5 | I19: =VLOOKUP(C19,Produits!A$1:F$114,5,FALSE) -> 0.2 | J19: 17.62 | K19: 21.15 | L19: 0 | M19: 0 | N19: 0 | O19: 0
B20: =VLOOKUP(C20,Produits!A$1:F$114,2,FALSE) -> 9 | C20: Claie agenaise 850g de pruneaux d'Agen fourrés à la crème de pruneaux | G20: =VLOOKUP(C20,Produits!A$1:F$114,4,FALSE) -> 26.16 | H20: =VLOOKUP(C20,Produits!A$1:F$114,6,FALSE) -> 31.4 | I20: =VLOOKUP(C20,Produits!A$1:F$114,5,FALSE) -> 0.2 | J20: 23.55 | K20: 28.26 | L20: 0 | M20: 0 | N20: 0 | O20: 0
B21: =VLOOKUP(C21,Produits!A$1:F$114,2,FALSE) -> 10 | C21: Pochette 250g spécialité Pruneaux d'Agen fourrés à la crème de pruneau | G21: =VLOOKUP(C21,Produits!A$1:F$114,4,FALSE) -> 7.41 | H21: =VLOOKUP(C21,Produits!A$1:F$114,6,FALSE) -> 8.9 | I21: =VLOOKUP(C21,Produits!A$1:F$114,5,FALSE) -> 0.2 | J21: 6.67 | K21: 8.01 | L21: 0 | M21: 0 | N21: 0 | O21: 0
B22: =VLOOKUP(C22,Produits!A$1:F$114,2,FALSE) -> 11 | C22: Pochette 200g spécialité Prun'Choco | G22: =VLOOKUP(C22,Produits!A$1:F$114,4,FALSE) -> 8.43 | H22: =VLOOKUP(C22,Produits!A$1:F$114,6,FALSE) -> 8.9 | I22: =VLOOKUP(C22,Produits!A$1:F$114,5,FALSE) -> 0.055 | J22: 7.59 | K22: 8.01 | L22: 0 | M22: 0 | N22: 0 | O22: 0
B23: =VLOOKUP(C23,Produits!A$1:F$114,2,FALSE) -> 12 | C23: Pochette 250g spécialité Mixte (Pruneaux fourrés et Prun'Choco) | G23: =VLOOKUP(C23,Produits!A$1:F$114,4,FALSE) -> 8.43 | H23: =VLOOKUP(C23,Produits!A$1:F$114,6,FALSE) -> 8.9 | I23: =VLOOKUP(C23,Produits!A$1:F$114,5,FALSE) -> 0.055 | J23: 7.59 | K23: 8.01 | L23: 0 | M23: 0 | N23: 0 | O23: 0
B24: =VLOOKUP(C24,Produits!A$1:F$114,2,FALSE) -> 13 | C24: Coffret élégance 200g Prun'Choco | G24: =VLOOKUP(C24,Produits!A$1:F$114,4,FALSE) -> 12.79 | H24: =VLOOKUP(C24,Produits!A$1:F$114,6,FALSE) -> 13.5 | I24: =VLOOKUP(C24,Produits!A$1:F$114,5,FALSE) -> 0.055 | J24: 11.51 | K24: 12.15 | L24: 0 | M24: 0 | N24: 0 | O24: 0
B25: =VLOOKUP(C25,Produits!A$1:F$114,2,FALSE) -> 14 | C25: Coffret élégance 270g Pruneaux truffés | G25: =VLOOKUP(C25,Produits!A$1:F$114,4,FALSE) -> 14.12 | H25: =VLOOKUP(C25,Produits!A$1:F$114,6,FALSE) -> 14.9 | I25: =VLOOKUP(C25,Produits!A$1:F$114,5,FALSE) -> 0.055 | J25: 12.71 | K25: 13.41 | L25: 0 | M25: 0 | N25: 0 | O25: 0
B26: =VLOOKUP(C26,Produits!A$1:F$114,2,FALSE) -> 15 | C26: Coffret élégance 400g Pruneaux d'Agen fourrés à la crème de pruneaux | G26: =VLOOKUP(C26,Produits!A$1:F$114,4,FALSE) -> 14.58 | H26: =VLOOKUP(C26,Produits!A$1:F$114,6,FALSE) -> 17.5 | I26: =VLOOKUP(C26,Produits!A$1:F$114,5,FALSE) -> 0.2 | J26: 13.12 | K26: 15.75 | L26: 0 | M26: 0 | N26: 0 | O26: 0
B27: =VLOOKUP(C27,Produits!A$1:F$114,2,FALSE) -> 16 | C27: Ballotin 95g spécialité Prun'Choco | G27: =VLOOKUP(C27,Produits!A$1:F$114,4,FALSE) -> 4.64 | H27: =VLOOKUP(C27,Produits!A$1:F$114,6,FALSE) -> 4.9 | I27: =VLOOKUP(C27,Produits!A$1:F$114,5,FALSE) -> 0.055 | J27: =IFERROR(ROUNDDOWN(K27/(1+I27),2),"") -> 4.18 | K27: 4.41 | L27: 0 | M27: =G27*L27 -> 0 | N27: =IFERROR(G27*L27,"") -> 0 | O27: =IFERROR((K27-J27)*L27,"") -> 0
B28: =VLOOKUP(C28,Produits!A$1:F$114,2,FALSE) -> 17 | C28: Ballotin 200g spécialité Prun'Choco | G28: =VLOOKUP(C28,Produits!A$1:F$114,4,FALSE) -> 9.38 | H28: =VLOOKUP(C28,Produits!A$1:F$114,6,FALSE) -> 9.9 | I28: =VLOOKUP(C28,Produits!A$1:F$114,5,FALSE) -> 0.055 | J28: 8.44 | K28: 8.91 | L28: 0 | M28: 0 | N28: 0 | O28: 0
B29: =VLOOKUP(C29,Produits!A$1:F$114,2,FALSE) -> 18 | C29: Ballotin 300g spécialité Prun'Choco | G29: =VLOOKUP(C29,Produits!A$1:F$114,4,FALSE) -> 13.45 | H29: =VLOOKUP(C29,Produits!A$1:F$114,6,FALSE) -> 14.2 | I29: =VLOOKUP(C29,Produits!A$1:F$114,5,FALSE) -> 0.055 | J29: 12.11 | K29: 12.78 | L29: 0 | M29: 0 | N29: 0 | O29: 0
B30: =VLOOKUP(C30,Produits!A$1:F$114,2,FALSE) -> 19 | C30: Coffret petits verres 6 x 5cl Pruneaux à l'eaux de vie de prunes 20% d'alc | G30: =VLOOKUP(C30,Produits!A$1:F$114,4,FALSE) -> 14.91 | H30: =VLOOKUP(C30,Produits!A$1:F$114,6,FALSE) -> 17.9 | I30: =VLOOKUP(C30,Produits!A$1:F$114,5,FALSE) -> 0.2 | J30: 13.42 | K30: 16.11 | L30: 0 | M30: 0 | N30: 0 | O30: 0
B31: =VLOOKUP(C31,Produits!A$1:F$114,2,FALSE) -> 20 | C31: Coffret petits verres 6 x 5cl Mixte (au choix: Eaux de vie de prunes - 20% d'alc, Cointreau - 18% d'alc, Whisky - 18% d'alc ou Rhum - 20% d'alc) | G31: =VLOOKUP(C31,Produits!A$1:F$114,4,FALSE) -> 15.91 | H31: =VLOOKUP(C31,Produits!A$1:F$114,6,FALSE) -> 19.1 | I31: =VLOOKUP(C31,Produits!A$1:F$114,5,FALSE) -> 0.2 | J31: 14.32 | K31: 17.19 | L31: 0 | M31: 0 | N31: 0 | O31: 0
B32: =VLOOKUP(C32,Produits!A$1:F$114,2,FALSE) -> 21 | C32: Coffret petits verres 12 x 5cl Pruneaux à l'eaux de vie de prunes 20% d'alc | G32: =VLOOKUP(C32,Produits!A$1:F$114,4,FALSE) -> 28 | H32: =VLOOKUP(C32,Produits!A$1:F$114,6,FALSE) -> 33.6 | I32: =VLOOKUP(C32,Produits!A$1:F$114,5,FALSE) -> 0.2 | J32: 25.2 | K32: 30.24 | L32: 0 | M32: 0 | N32: 0 | O32: 0
B33: =VLOOKUP(C33,Produits!A$1:F$114,2,FALSE) -> 22 | C33: Coffret petits verres 12 x 5cl Mixte (au choix: Eaux de vie de prunes - 20% d'alc, Cointreau - 18% d'alc, Whisky - 18% d'alc ou Rhum - 20% d'alc) | G33: =VLOOKUP(C33,Produits!A$1:F$114,4,FALSE) -> 30.08 | H33: =VLOOKUP(C33,Produits!A$1:F$114,6,FALSE) -> 36.1 | I33: =VLOOKUP(C33,Produits!A$1:F$114,5,FALSE) -> 0.2 | J33: 27.07 | K33: 32.49 | L33: 0 | M33: 0 | N33: 0 | O33: 0
B34: =VLOOKUP(C34,Produits!A$1:F$114,2,FALSE) -> 23 | C34: Bouteille Apéritif de Pruneaux 37,5cl - 16% d'alc | G34: =VLOOKUP(C34,Produits!A$1:F$114,4,FALSE) -> 9.58 | H34: =VLOOKUP(C34,Produits!A$1:F$114,6,FALSE) -> 11.5 | I34: =VLOOKUP(C34,Produits!A$1:F$114,5,FALSE) -> 0.2 | J34: 8.62 | K34: 10.35 | L34: 0 | M34: 0 | N34: 0 | O34: 0
B35: =VLOOKUP(C35,Produits!A$1:F$114,2,FALSE) -> 24 | C35: Bouteille Apéritif de Pruneaux 70cl - 16% d'alc | G35: =VLOOKUP(C35,Produits!A$1:F$114,4,FALSE) -> 15.16 | H35: =VLOOKUP(C35,Produits!A$1:F$114,6,FALSE) -> 18.2 | I35: =VLOOKUP(C35,Produits!A$1:F$114,5,FALSE) -> 0.2 | J35: 13.65 | K35: 16.38 | L35: 0 | M35: 0 | N35: 0 | O35: 0
B36: =VLOOKUP(C36,Produits!A$1:F$114,2,FALSE) -> 25 | C36: Bouteille Ed. limitée Vieille eau de vie de prunes 50cl - 44,1% d'alc | G36: =VLOOKUP(C36,Produits!A$1:F$114,4,FALSE) -> 30.83 | H36: =VLOOKUP(C36,Produits!A$1:F$114,6,FALSE) -> 37 | I36: =VLOOKUP(C36,Produits!A$1:F$114,5,FALSE) -> 0.2 | J36: 27.75 | K36: 33.3 | L36: 0 | M36: 0 | N36: 0 | O36: 0
B37: =VLOOKUP(C37,Produits!A$1:F$114,2,FALSE) -> 26 | C37: Suprêmes Prun'Choco - Mini cagette gourmande | G37: =VLOOKUP(C37,Produits!A$1:F$114,4,FALSE) -> 17.53 | H37: =VLOOKUP(C37,Produits!A$1:F$114,6,FALSE) -> 18.5 | I37: =VLOOKUP(C37,Produits!A$1:F$114,5,FALSE) -> 0.055 | J37: =IFERROR(ROUNDDOWN(K37/(1+I37),2),"") -> 15.78 | K37: 16.65 | L37: 0 | M37: =G37*L37 -> 0 | N37: =IFERROR(G37*L37,"") -> 0 | O37: =IFERROR((K37-J37)*L37,"") -> 0
B38: =VLOOKUP(C38,Produits!A$1:F$114,2,FALSE) -> 27 | C38: Suprêmes Prun'Choco - Coffret élégance | G38: =VLOOKUP(C38,Produits!A$1:F$114,4,FALSE) -> 20.85 | H38: =VLOOKUP(C38,Produits!A$1:F$114,6,FALSE) -> 22 | I38: =VLOOKUP(C38,Produits!A$1:F$114,5,FALSE) -> 0.055 | J38: 18.76 | K38: 19.8 | L38: 0 | M38: 0 | N38: 0 | O38: 0
B39: =VLOOKUP(C39,Produits!A$1:F$114,2,FALSE) -> 28 | C39: Suprêmes Prun'Choco - Plateau gourmand | G39: =VLOOKUP(C39,Produits!A$1:F$114,4,FALSE) -> 26.44 | H39: =VLOOKUP(C39,Produits!A$1:F$114,6,FALSE) -> 27.9 | I39: =VLOOKUP(C39,Produits!A$1:F$114,5,FALSE) -> 0.055 | J39: =IFERROR(ROUNDDOWN(K39/(1+I39),2),"") -> 23.8 | K39: 25.11 | L39: 0 | M39: =G39*L39 -> 0 | N39: =IFERROR(G39*L39,"") -> 0 | O39: =IFERROR((K39-J39)*L39,"") -> 0
B40: =VLOOKUP(C40,Produits!A$1:F$114,2,FALSE) -> 29 | C40: Suprêmes Prun'Choco - Assiette raffinée | G40: =VLOOKUP(C40,Produits!A$1:F$114,4,FALSE) -> 27.39 | H40: =VLOOKUP(C40,Produits!A$1:F$114,6,FALSE) -> 28.9 | I40: =VLOOKUP(C40,Produits!A$1:F$114,5,FALSE) -> 0.055 | J40: 24.65 | K40: 26.01 | L40: 0 | M40: 0 | N40: 0 | O40: 0
B41: =VLOOKUP(C41,Produits!A$1:F$114,2,FALSE) -> 30 | C41: Suprêmes Prun'Choco - Claie Agenaise 1 | G41: =VLOOKUP(C41,Produits!A$1:F$114,4,FALSE) -> 36.77 | H41: =VLOOKUP(C41,Produits!A$1:F$114,6,FALSE) -> 38.8 | I41: =VLOOKUP(C41,Produits!A$1:F$114,5,FALSE) -> 0.055 | J41: =IFERROR(ROUNDDOWN(K41/(1+I41),2),"") -> 33.09 | K41: 34.92 | L41: 0 | M41: =G41*L41 -> 0 | N41: =IFERROR(G41*L41,"") -> 0 | O41: =IFERROR((K41-J41)*L41,"") -> 0
B42: =VLOOKUP(C42,Produits!A$1:F$114,2,FALSE) -> 31 | C42: Suprêmes Prun'Choco - Claie Agenaise 2 | G42: =VLOOKUP(C42,Produits!A$1:F$114,4,FALSE) -> 47.2 | H42: =VLOOKUP(C42,Produits!A$1:F$114,6,FALSE) -> 49.8 | I42: =VLOOKUP(C42,Produits!A$1:F$114,5,FALSE) -> 0.055 | J42: 42.48 | K42: 44.82 | L42: 0 | M42: 0 | N42: 0 | O42: 0
C43: Foie Gras de canard entier 180g + sachet prun'choco 100g (Lot) | G43: =VLOOKUP(C43,Produits!A$1:F$114,4,FALSE) -> 20.37 | H43: =VLOOKUP(C43,Produits!A$1:F$114,6,FALSE) -> 21.5 | I43: =VLOOKUP(C43,Produits!A$1:F$114,5,FALSE) -> 0.055 | J43: =IFERROR(ROUNDDOWN(K43/(1+I43),2),"") -> 18.34 | K43: =IF(H43-H43*$M$55=0,"",H43-H43*$M$55) -> 19.35 | L43: 0 | M43: =G43*L43 -> 0 | N43: =IFERROR(G43*L43,"") -> 0 | O43: =IFERROR((K43-J43)*L43,"") -> 0
C44: Mendiant chocolat noir et lait 150g (Pruneau, noisette, amande, raisin) | G44: =VLOOKUP(C44,Produits!A$1:F$114,4,FALSE) -> 5 | H44: =VLOOKUP(C44,Produits!A$1:F$114,6,FALSE) -> 6 | I44: =VLOOKUP(C44,Produits!A$1:F$114,5,FALSE) -> 0.2 | J44: 4.5 | K44: 5.4 | L44: 0 | M44: 0 | N44: 0 | O44: 0
C45: Crème de pruneaux 320g | G45: =VLOOKUP(C45,Produits!A$1:F$114,4,FALSE) -> 3.98 | H45: =VLOOKUP(C45,Produits!A$1:F$114,6,FALSE) -> 4.2 | I45: =VLOOKUP(C45,Produits!A$1:F$114,5,FALSE) -> 0.055 | J45: 3.58 | K45: 3.78 | L45: 0 | M45: 0 | N45: 0 | O45: 0
C46: Pulpe de pruneaux 310g | G46: =VLOOKUP(C46,Produits!A$1:F$114,4,FALSE) -> 3.98 | H46: =VLOOKUP(C46,Produits!A$1:F$114,6,FALSE) -> 4.2 | I46: =VLOOKUP(C46,Produits!A$1:F$114,5,FALSE) -> 0.055 | J46: 3.58 | K46: 3.78 | L46: 0 | M46: 0 | N46: 0 | O46: 0
C47: Pâte de fruit au pruneau 150g | G47: =VLOOKUP(C47,Produits!A$1:F$114,4,FALSE) -> 5 | H47: =VLOOKUP(C47,Produits!A$1:F$114,6,FALSE) -> 6 | I47: =VLOOKUP(C47,Produits!A$1:F$114,5,FALSE) -> 0.2 | J47: 4.5 | K47: 5.4 | L47: 0 | M47: 0 | N47: 0 | O47: 0
C48: Pruneaux d'Agen au naturel 500g | G48: =VLOOKUP(C48,Produits!A$1:F$114,4,FALSE) -> 3.6 | H48: =VLOOKUP(C48,Produits!A$1:F$114,6,FALSE) -> 3.8 | I48: =VLOOKUP(C48,Produits!A$1:F$114,5,FALSE) -> 0.055 | J48: 3.24 | K48: 3.42 | L48: 0 | M48: 0 | N48: 0 | O48: 0
B49: =VLOOKUP(C49,Produits!A$1:F$114,2,FALSE) -> 0 | C49: Pruneaux d'Agen au naturel dénoyautés 500g | G49: =VLOOKUP(C49,Produits!A$1:F$114,4,FALSE) -> 4.54 | H49: =VLOOKUP(C49,Produits!A$1:F$114,6,FALSE) -> 4.8 | I49: =VLOOKUP(C49,Produits!A$1:F$114,5,FALSE) -> 0.055 | J49: 4.09 | K49: 4.32 | L49: 0 | M49: 0 | N49: 0 | O49: 0
B50: =VLOOKUP(C50,Produits!A$1:F$114,2,FALSE) -> 0 | C50: Pruneaux d'Agen au naturel dénoyautés 500g | G50: =VLOOKUP(C50,Produits!A$1:F$114,4,FALSE) -> 4.54 | H50: =VLOOKUP(C50,Produits!A$1:F$114,6,FALSE) -> 4.8 | I50: =VLOOKUP(C50,Produits!A$1:F$114,5,FALSE) -> 0.055 | J50: 4.09 | K50: 4.32 | L50: 0 | M50: =G50*L50 -> 0 | N50: =IFERROR(G50*L50,"") -> 0 | O50: =IFERROR((K50-J50)*L50,"") -> 0
B51: =VLOOKUP(C51,Produits!A$1:F$114,2,FALSE) -> 0 | C51: Jus de pruneaux 25cl | G51: =VLOOKUP(C51,Produits!A$1:F$114,4,FALSE) -> 2.08 | H51: =VLOOKUP(C51,Produits!A$1:F$114,6,FALSE) -> 2.2 | I51: =VLOOKUP(C51,Produits!A$1:F$114,5,FALSE) -> 0.055 | J51: 1.87 | K51: 1.98 | L51: 0 | M51: 0 | N51: 0 | O51: 0
C52: Des étiquettes rondes diam. 35mm, personnalisées au logo de votre CE collées sur nos produits pour 1€ de plus | I52: 0.2 | J52: =IF(L52="Oui",ROUNDDOWN(K52/1.2,2),0) -> 0 | K52: =IF(L52="Oui",1,0) -> 0 | L52: Non | M52: =J52 -> 0 | N52: =K52 -> 0 | O52: =K52-J52 -> 0
I53: Sous-total non remisé HT: | M53: =SUMPRODUCT(G12:G51,L12:L51) -> 0
B54: Frais de conditionnement et de livraison: | I54: Sous-total non remisé TTC: | M54: =SUMPRODUCT(H12:H51,L12:L51) -> 0
B55: 29,90 € HT (montant commande remisé < 400€ HT) 19,90 € HT (montant commande remisé de 400€ à 649,99€ HT) Franco de port au-delà de 650 € HT | I55: Votre remise (%) | M55: =Paramètres!C2 -> 0.1
I56: € (HT) | M56: =M53*M55 -> 0
I57: € (TTC) | M57: =M54*M55 -> 0
I58: Sous-total remisé € (HT) | M58: =M53-M56+J52 -> 0
B59: Modes de règlement acceptés: | I59: Sous-total remisé € (TTC) | M59: =M54-M57+K52 -> 0
B60: Chèque, CB, Paypal, Virement, Espèces | I60: (1) Frais de cond. et de livraisons € (HT): | M60: =Paramètres!H4 -> 0
I61: € (TTC) | M61: =M60*(1+Paramètres!A3) -> 0
B62: NOTES: Remarques à prendre en compte pour la commande | I62: Total à régler (€ HT) | M62: =M58+M60 -> 0
B63: Ecrivez ici les remarques à prendre en compte pour votre commande: Délai impératif ? Envoi décalé ? Plusieurs dsetinataires ? Digicode ?... | I63: Total à régler (€ TTC) | M63: =M59+M61 -> 0
K65: dont TVA à 5,5%: | M65: =(SUMIFS(O12:O51,I12:I51,5.5%)) -> 0
K66: dont TVA à 20%: | M66: =(SUMIFS(O12:O52,I12:I52,20%)+(M61-M60)) -> 0
A69: SARL au capital de 7 622,45 € - RCS Marmande 402 145 437 - SIRET 402 145 437 00016 - TVA Intracom. FR 84 40 214 54 37 Pas d'escompte pour paiement anticipé - Indemnité forfaitaire de 40€pour frais de recouvrement en cas de retard de paiement
D72: Vérifier que tous les champs de coordonnées en haut de page soient correctement remplis avant de cliquer sur "Envoyer le bon de commande".

Sheet Produits (hidden)
A1: Désignation | B1: # | C1: Poids | D1: Prix HT | E1: TVA | F1: Prix TTC
A2: Boite or 100 ans fourrés 350G | B2: 1 | C2: 350g | D2: =ROUNDDOWN(F2/(1+E2),2) -> 12.41 | E2: 0.2 | F2: 14.9
A3: Boite or 100 ans fourrés 600G | B3: 2 | C3: 600g | D3: =ROUNDDOWN(F3/(1+E3),2) -> 18.33 | E3: 0.2 | F3: 22
A4: Boite or 100 ans mixte 290G | B4: 3 | C4: 290g | D4: 12.25 | E4: 0.2 | F4: 14.7
A5: Boite or 100 ans mixte 500G | B5: 4 | C5: 500g | D5: 17.75 | E5: 0.2 | F5: 21.3
A6: Boite or 100 ans fourrés 850G | B6: 5 | C6: 850g | D6: 23.66 | E6: 0.2 | F6: 28.4
A7: Boite pruneaux d'Agen 1kg 33/44 | B7: 6 | C7: 1100g | D7: 9.95 | E7: 0.055 | F7: 10.5
A8: Claie agenaise 350g de pruneaux d'Agen fourrés à la crème de pruneaux | B8: 7 | C8: 350g | D8: 12.83 | E8: 0.2 | F8: 15.4
A9: Claie agenaise 600g de pruneaux d'Agen fourrés à la crème de pruneaux | B9: 8 | C9: 600g | D9: 19.58 | E9: 0.2 | F9: 23.5
A10: Claie agenaise 850g de pruneaux d'Agen fourrés à la crème de pruneaux | B10: 9 | C10: 850g | D10: 26.16 | E10: 0.2 | F10: 31.4
A11: Pochette 250g spécialité Pruneaux d'Agen fourrés à la crème de pruneau | B11: 10 | C11: 250g | D11: 7.41 | E11: 0.2 | F11: 8.9
A12: Pochette 200g spécialité Prun'Choco | B12: 11 | C12: 200g | D12: 8.43 | E12: 0.055 | F12: 8.9
A13: Pochette 250g spécialité Mixte (Pruneaux fourrés et Prun'Choco) | B13: 12 | C13: 250g | D13: 8.43 | E13: 0.055 | F13: 8.9
A14: Coffret élégance 200g Prun'Choco | B14: 13 | C14: 200g | D14: 12.79 | E14: 0.055 | F14: 13.5
A15: Coffret élégance 270g Pruneaux truffés | B15: 14 | C15: 270g | D15: 14.12 | E15: 0.055 | F15: 14.9
A16: Coffret élégance 400g Pruneaux d'Agen fourrés à la crème de pruneaux | B16: 15 | C16: 400g | D16: 14.58 | E16: 0.2 | F16: 17.5
A17: Ballotin 95g spécialité Prun'Choco | B17: 16 | C17: 95g | D17: 4.64 | E17: 0.055 | F17: 4.9
A18: Ballotin 200g spécialité Prun'Choco | B18: 17 | C18: 200g | D18: 9.38 | E18: 0.055 | F18: 9.9
A19: Ballotin 300g spécialité Prun'Choco | B19: 18 | C19: 300g | D19: 13.45 | E19: 0.055 | F19: 14.2
A20: Coffret petits verres 6 x 5cl Pruneaux à l'eaux de vie de prunes 20% d'alc | B20: 19 | D20: 14.91 | E20: 0.2 | F20: 17.9
A21: Coffret petits verres 6 x 5cl Mixte (au choix: Eaux de vie de prunes - 20% d'alc, Cointreau - 18% d'alc, Whisky - 18% d'alc ou Rhum - 20% d'alc) | B21: 20 | D21: 15.91 | E21: 0.2 | F21: 19.1
A22: Coffret petits verres 12 x 5cl Pruneaux à l'eaux de vie de prunes 20% d'alc | B22: 21 | D22: 28 | E22: 0.2 | F22: 33.6
A23: Coffret petits verres 12 x 5cl Mixte (au choix: Eaux de vie de prunes - 20% d'alc, Cointreau - 18% d'alc, Whisky - 18% d'alc ou Rhum - 20% d'alc) | B23: 22 | D23: 30.08 | E23: 0.2 | F23: 36.1
A24: Bouteille Apéritif de Pruneaux 37,5cl - 16% d'alc | B24: 23 | D24: 9.58 | E24: 0.2 | F24: 11.5
A25: Bouteille Apéritif de Pruneaux 70cl - 16% d'alc | B25: 24 | D25: 15.16 | E25: 0.2 | F25: 18.2
A26: Bouteille Ed. limitée Vieille eau de vie de prunes 50cl - 44,1% d'alc | B26: 25 | D26: 30.83 | E26: 0.2 | F26: 37
A27: Suprêmes Prun'Choco - Mini cagette gourmande | B27: 26 | D27: 17.53 | E27: 0.055 | F27: 18.5
A28: Suprêmes Prun'Choco - Coffret élégance | B28: 27 | D28: 20.85 | E28: 0.055 | F28: 22
A29: Suprêmes Prun'Choco - Plateau gourmand | B29: 28 | D29: 26.44 | E29: 0.055 | F29: 27.9
A30: Suprêmes Prun'Choco - Assiette raffinée | B30: 29 | D30: 27.39 | E30: 0.055 | F30: 28.9
A31: Suprêmes Prun'Choco - Claie Agenaise 1 | B31: 30 | D31: =ROUNDDOWN(F31/(1+E31),2) -> 36.77 | E31: 0.055 | F31: 38.8
A32: Suprêmes Prun'Choco - Claie Agenaise 2 | B32: 31 | D32: 47.2 | E32: 0.055 | F32: 49.8
A33: Foie Gras de canard entier 180g + sachet prun'choco 100g (Lot) | D33: 20.37 | E33: 0.055 | F33: 21.5
A34: Mendiant chocolat noir et lait 150g (Pruneau, noisette, amande, raisin) | D34: 5 | E34: 0.2 | F34: 6
A35: Crème de pruneaux 320g | D35: 3.98 | E35: 0.055 | F35: 4.2
A36: Pulpe de pruneaux 310g | D36: 3.98 | E36: 0.055 | F36: 4.2
A37: Pâte de fruit au pruneau 150g | D37: 5 | E37: 0.2 | F37: 6
A38: Pruneaux d'Agen au naturel 500g | D38: 3.6 | E38: 0.055 | F38: 3.8
A39: Pruneaux d'Agen au naturel dénoyautés 500g | D39: 4.54 | E39: 0.055 | F39: 4.8
A40: Jus de pruneaux 25cl | D40: 2.08 | E40: 0.055 | F40: 2.2
A41: >>> Ajouter une nouvelle ligne de produit <<< | B41: - | C41: - | D41: 0 | E41: 0 | F41: 0

Sheet Paramètres (hidden)
A1: TVA | B1: Qté | C1: Remise | D1: Livraison | H1: Total commande remisé récupéré HT | I1: Oui/Non
A2: 0.055 | B2: 0 | C2: 0.1 | D2: cmde à valeur nulle | E2: 0 | F2: 0 | G2: 0 | H2: =Formulaire!M58 -> 0 | I2: Oui
A3: 0.2 | B3: 1 | D3: cmde inf. à 400€ HT | E3: 0.01 | F3: 399.99 | G3: 29.9 | H3: Montant des frais de port calculés | I3: Non
B4: 2 | D4: cmde comprise entre 400€ HT et 649,99€ HT | E4: 400 | F4: 649.99 | G4: 19.9 | H4: =VLOOKUP(H2,E2:G5,3,TRUE) -> 0
B5: 3 | D5: cmde au-delà de 650€ HT | E5: 650 | F5: =10^10 -> 10000000000 | G5: 0
B6: 4
B7: 5
B8: 6
B9: 7
B10: 8
B11: 9
B12: 10
B13: 11
B14: 12
B15: 13
B16: 14
B17: 15
B18: 16
B19: 17
B20: 18
B21: 19
B22: 20
B23: 21
B24: 22
B25: 23
B26: 24
B27: 25
B28: 26
B29: 27
B30: 28
B31: 29
B32: 30
B33: 31
B34: 32
B35: 33
B36: 34
B37: 35
B38: 36
B39: 37
B40: 38
B41: 39
B42: 40
B43: 41
B44: 42
B45: 43
B46: 44
B47: 45
B48: 46
B49: 47
B50: 48
B51: 49
B52: 50
B53: 51
B54: 52
B55: 53
B56: 54
B57: 55
B58: 56
B59: 57
B60: 58
B61: 59
B62: 60
B63: 61
B64: 62
B65: 63
B66: 64
B67: 65
B68: 66
B69: 67
B70: 68
B71: 69
B72: 70
B73: 71
B74: 72
B75: 73
B76: 74
B77: 75
B78: 76
B79: 77
B80: 78
B81: 79
B82: 80
B83: 81
B84: 82
B85: 83
B86: 84
B87: 85
B88: 86
B89: 87
B90: 88
B91: 89
B92: 90
B93: 91
B94: 92
B95: 93
B96: 94
B97: 95
B98: 96
B99: 97
B100: 98
B101: 99
B102: 100
